bitfinex/quotes_BTCUSD_20230120
["timestamp","ask_amount","ask_price","bid_price","bid_amount"]
[1674232285149,1e-08,21236.0,21235.0,1.3515885]
[1674232285656,0.00056903,21236.0,21235.0,1.91628288]
[1674232285918,0.00056903,21236.0,21235.0,2.24560327]
[1674232286420,0.00056903,21236.0,21235.0,1.68090889]
[1674232286661,0.00056903,21236.0,21235.0,1.67949739]
[1674232286917,0.00156903,21236.0,21235.0,1.91249739]
[1674232287406,0.00156903,21236.0,21235.0,2.38969908]
[1674232287668,0.00156903,21236.0,21235.0,2.95439346]
[1674232287938,0.00156903,21236.0,21235.0,3.25439346]
[1674232288191,0.01071874,21237.0,21236.0,0.28830805]
[1674232288436,0.01071874,21237.0,21236.0,2.75564778]
[1674232289723,0.01057021,21237.0,21236.0,3.05564778]
[1674232290009,0.01057021,21237.0,21236.0,2.2829534]
[1674232290232,0.01057021,21237.0,21236.0,2.84764778]
[1674232290739,0.01042061,21237.0,21236.0,2.84764778]
[1674232291534,0.01042061,21237.0,21236.0,3.14764778]
[1674232292036,0.01042061,21237.0,21236.0,2.84764778]
[1674232292626,0.01042061,21237.0,21236.0,2.2829534]
[1674232292627,0.01087814,21237.0,21236.0,2.2829534]
[1674232293319,0.01087814,21237.0,21236.0,2.1477834]
[1674232293905,0.01087814,21237.0,21236.0,2.71247778]
[1674232294090,0.01087814,21237.0,21236.0,2.8237229]
[1674232294346,0.01087814,21237.0,21236.0,3.1237229]
[1674232294604,0.01087814,21237.0,21236.0,3.08817778]
[1674232295147,0.01087814,21237.0,21236.0,2.78817778]
[1674232295396,0.01087814,21237.0,21236.0,3.08817778]
[1674232295657,0.01087814,21237.0,21236.0,3.1994229]
[1674232295914,0.01087814,21237.0,21236.0,3.81115826]
[1674232296992,0.01087814,21237.0,21236.0,3.92256473]
[1674232297251,0.01087814,21237.0,21236.0,3.36645193]
[1674232297513,0.01087814,21237.0,21236.0,3.92257271]
[1674232298012,0.01072749,21237.0,21236.0,1.87915287]
[1674232298014,0.01072749,21237.0,21236.0,1.52078171]
[1674232298263,0.01072749,21237.0,21236.0,2.1479834]
[1674232298775,0.01107079,21237.0,21236.0,2.1479834]
[1674232299820,0.01107079,21237.0,21236.0,2.5186834]
[1674232300080,0.01107079,21237.0,21236.0,3.55427578]
[1674232300571,0.01107079,21237.0,21236.0,3.66568225]
[1674232300834,0.01107079,21237.0,21236.0,3.55427578]
[1674232301094,0.01107079,21237.0,21236.0,3.66568225]
[1674232301682,0.01092014,21237.0,21236.0,3.66068225]
[1674232302401,0.01092014,21237.0,21236.0,3.56068225]
[1674232302664,0.01092014,21237.0,21236.0,3.44927578]
[1674232303191,0.20524111,21237.0,21236.0,1.84178825]
[1674232303463,0.01092014,21237.0,21236.0,1.48534025]
[1674232304104,0.01092014,21237.0,21236.0,1.033796]
[1674232304107,0.01092014,21237.0,21236.0,1.259496]
[1674232304374,0.01092014,21237.0,21236.0,2.01543859]
[1674232304642,0.01092014,21237.0,21236.0,3.20849305]
[1674232304907,0.01092014,21237.0,21236.0,3.25425197]
[1674232305197,0.02443857,21238.0,21237.0,0.02017198]
[1674232305496,0.02443857,21238.0,21237.0,3.74189533]
[1674232305730,0.02443857,21238.0,21237.0,3.74249533]
[1674232306268,0.02543857,21238.0,21237.0,3.82649533]
[1674232306553,0.0216748,21245.0,21238.0,0.3530409]
[1674232307056,0.02274387,21247.0,21241.0,0.27797583]
[1674232307061,0.02274387,21247.0,21241.0,0.11119033]
[1674232307344,0.02274387,21247.0,21244.0,0.60759033]
[1674232307616,0.14671586,21257.0,21247.0,13.2862]
[1674232307906,0.09348087,21257.0,21248.0,1.013874]
[1674232308401,0.6,21258.0,21249.0,0.319831]
[1674232308402,0.09858831,21257.0,21249.0,0.319831]
[1674232308685,0.00056962,21259.0,21252.0,0.0757]
[1674232308953,0.37951695,21264.0,21256.0,0.1509]
[1674232308954,0.15,21257.0,21256.0,0.1509]
[1674232309224,0.15,21257.0,21256.0,0.687823]
[1674232309542,0.22995978,21267.0,21257.0,0.04386]
[1674232309841,0.0030041,21271.0,21260.0,0.44999999]
[1674232310111,0.53657339,21277.0,21260.0,0.44999999]
[1674232310112,0.1776109,21281.0,21265.0,0.6]
[1674232310370,0.1776109,21281.0,21266.0,0.30672]
[1674232310371,0.94025386,21280.0,21266.0,0.30672]
[1674232310638,0.00079211,21270.0,21267.0,0.700287]
[1674232310936,0.1776109,21281.0,21269.0,0.23508]
[1674232310937,0.00967832,21281.0,21269.0,0.23508]
[1674232311204,0.00967832,21281.0,21267.0,0.47871]
[1674232311205,0.14322832,21281.0,21277.0,0.23499]
[1674232311489,0.14322832,21281.0,21278.0,0.306528]
[1674232311490,0.00967832,21281.0,21278.0,0.306528]
[1674232311764,0.0008143,21280.0,21273.0,0.66681252]
[1674232312057,0.53598073,21279.0,21277.0,0.469985]
[1674232312551,0.53598073,21279.0,21273.0,1.00333052]
[1674232312552,0.345534,21278.0,21273.0,0.4964]
[1674232312557,0.345534,21278.0,21274.0,0.53124146]
[1674232312831,0.332904,21277.0,21273.0,0.4964]
[1674232313098,0.53098073,21278.0,21270.0,0.13187]
[1674232313099,0.53098073,21274.0,21270.0,0.13187]
[1674232313393,0.33319,21273.0,21270.0,0.15]
[1674232313898,0.318182,21272.0,21270.0,0.15]
[1674232313899,0.318182,21272.0,21264.0,0.0757]
[1674232314161,1.0375187,21271.0,21264.0,0.0757]
[1674232314427,0.19432097,21270.0,21268.0,0.15]
[1674232314688,0.19432097,21270.0,21264.0,0.47720169]
[1674232314689,0.325274,21269.0,21264.0,0.47720169]
[1674232314985,0.60608073,21271.0,21264.0,0.47720169]
[1674232315214,0.60608073,21271.0,21262.0,0.0756]
[1674232315488,0.60608073,21271.0,21262.0,0.34432097]
[1674232315489,0.0757,21269.0,21262.0,0.34432097]
[1674232315758,0.0757,21267.0,21262.0,0.15]
[1674232316022,0.09084,21267.0,21262.0,0.15]
[1674232316314,0.0757,21264.0,21263.0,0.55921394]
[1674232316580,0.0757,21264.0,21262.0,0.15]
[1674232316865,0.27896,21263.0,21262.0,0.15]
[1674232317143,0.0834,21266.0,21260.0,0.06901927]
[1674232317447,0.0085,21266.0,21262.0,0.60565169]
[1674232317724,0.0085,21266.0,21265.0,0.33124129]
[1674232317987,0.15,21275.0,21265.0,1.00678266]
[1674232318241,0.15,21268.0,21267.0,0.62545131]
[1674232318517,0.15,21268.0,21267.0,1.70458624]
[1674232319068,0.15,21268.0,21267.0,0.94845623]
[1674232319334,0.15,21268.0,21267.0,0.47125454]
[1674232319610,0.20164,21273.0,21267.0,0.09447058]
[1674232319892,0.025392,21272.0,21267.0,0.09447058]
[1674232320385,0.0757,21271.0,21267.0,0.21977228]
[1674232320659,0.0757,21269.0,21267.0,0.02545131]
[1674232320927,0.321096,21268.0,21267.0,0.02545131]
[1674232321187,0.3842,21268.0,21267.0,0.02545131]
[1674232321461,0.856121,21268.0,21267.0,0.02545131]
[1674232321741,0.39208937,21268.0,21267.0,5.131e-05]
[1674232322015,0.93164937,21268.0,21266.0,0.02121412]
[1674232322277,1.58090669,21267.0,21261.0,0.06901927]
[1674232322547,0.01793,21263.0,21257.0,0.15]
[1674232322859,0.0751,21258.0,21254.0,0.33997281]
[1674232323138,0.19962,21261.0,21253.0,0.15019]
[1674232323139,0.40696,21257.0,21253.0,0.15019]
[1674232323402,0.0085,21257.0,21256.0,0.15]
[1674232323670,0.469692,21257.0,21256.0,0.15]
[1674232323930,0.469692,21257.0,21253.0,0.00019]
[1674232323931,0.5166612,21257.0,21253.0,0.00019]
[1674232324447,0.0757,21255.0,21253.0,0.00019]
[1674232324453,0.0757,21255.0,21253.0,0.61265722]
[1674232324720,0.314438,21254.0,21253.0,0.23140966]
[1674232324997,1.14823201,21267.0,21253.0,2.45425435]
[1674232324998,0.15,21262.0,21253.0,2.45425435]
[1674232325261,0.15,21262.0,21261.0,0.6]
[1674232325529,0.15,21262.0,21261.0,0.67287897]
[1674232325800,0.15,21262.0,21261.0,0.478558]
[1674232326074,0.15,21262.0,21258.0,0.0754]
[1674232326335,0.27365,21265.0,21259.0,0.19432097]
[1674232326336,0.15,21263.0,21259.0,0.19432097]
[1674232326623,0.12365,21268.0,21259.0,0.19432097]
[1674232326624,0.15,21270.0,21262.0,0.47720169]
[1674232326919,0.15,21270.0,21261.0,0.0751]
[1674232326920,0.15,21270.0,21269.0,0.0757]
[1674232327197,0.15,21270.0,21269.0,0.52915397]
[1674232327718,0.1496091,21273.0,21267.0,0.0754]
[1674232328286,0.0757,21271.0,21267.0,0.19432097]
[1674232328568,0.0757,21269.0,21263.0,0.15]
[1674232328844,0.0757,21269.0,21261.0,0.15]
[1674232329125,0.0754,21266.0,21262.0,0.42254801]
[1674232329390,0.0085,21265.0,21262.0,0.42254801]
[1674232329884,0.084852,21268.0,21264.0,0.40187384]
[1674232329887,0.084852,21268.0,21261.0,0.42819279]
[1674232330147,0.0757,21267.0,21261.0,0.34432097]
[1674232330411,0.327515,21266.0,21262.0,0.19432097]
[1674232330673,0.327515,21266.0,21259.0,0.0755]
[1674232330674,0.6,21263.0,21259.0,0.0755]
[1674232330949,0.51604997,21262.0,21256.0,0.03708869]
[1674232331226,0.6,21260.0,21255.0,0.0754]
[1674232331501,0.32849889,21259.0,21255.0,0.47979059]
[1674232331815,0.38346447,21256.0,21253.0,0.34054391]
[1674232332671,0.319531,21255.0,21253.0,0.34054391]
[1674232332933,0.194664,21254.0,21252.0,0.42345076]
[1674232333204,0.311525,21253.0,21252.0,0.42345076]
[1674232333512,0.311525,21253.0,21252.0,0.46226704]
[1674232333794,0.31217006,21253.0,21252.0,0.46226704]
[1674232334059,0.31217006,21253.0,21248.0,0.0757]
[1674232334357,0.19417,21252.0,21248.0,0.432433]
[1674232334667,0.38346447,21250.0,21248.0,0.432433]
[1674232334948,0.19417,21249.0,21248.0,0.432433]
[1674232335250,0.38346447,21250.0,21245.0,0.0757]
[1674232335251,0.38346447,21250.0,21245.0,0.44983594]
[1674232335524,0.40159845,21249.0,21244.0,0.36075593]
[1674232335795,0.38346447,21247.0,21244.0,0.40304822]
[1674232336103,0.38346447,21249.0,21247.0,0.33919893]
[1674232336633,0.29823,21248.0,21245.0,0.19432097]
[1674232336920,0.207465,21247.0,21246.0,0.34219358]
[1674232337183,0.207465,21247.0,21242.0,0.19991]
[1674232337524,0.53384695,21248.0,21244.0,0.39001126]
[1674232337525,0.68169447,21246.0,21244.0,0.39001126]
[1674232337786,0.38346447,21246.0,21245.0,0.44874234]
[1674232338290,0.72249947,21246.0,21244.0,0.45222949]
[1674232338541,0.17516,21245.0,21241.0,0.15]
[1674232338840,0.322162,21244.0,21241.0,0.15]
[1674232339121,0.00063868,21247.0,21244.0,0.88537686]
[1674232339376,0.42104071,21247.0,21245.0,0.326886]
[1674232339647,0.00063868,21247.0,21246.0,0.480041]
[1674232339906,0.00063868,21247.0,21245.0,0.39614606]
[1674232339907,0.39904079,21247.0,21245.0,0.39614606]
[1674232340377,0.39904079,21247.0,21244.0,0.88537686]
[1674232340378,0.0085,21246.0,21244.0,0.88537686]
[1674232340641,0.45060367,21246.0,21244.0,0.88537686]
[1674232340909,0.38346447,21245.0,21244.0,0.88537686]
[1674232341172,0.73097847,21245.0,21244.0,0.88537686]
[1674232341447,0.0085,21245.0,21244.0,0.88537686]
[1674232341701,0.00063775,21245.0,21244.0,0.88537686]
[1674232341961,0.00063775,21245.0,21244.0,1.89552105]
[1674232342232,0.53346447,21254.0,21245.0,0.00083974]
[1674232342495,0.7075885,21254.0,21247.0,0.470654]
[1674232342810,0.69681938,21252.0,21250.0,0.0755]
[1674232343171,0.38346447,21252.0,21248.0,0.0757]
[1674232343429,0.75275586,21250.0,21245.0,1.06549073]
[1674232343800,0.75275586,21250.0,21245.0,0.00203737]
[1674232343801,0.75275586,21250.0,21245.0,0.46618441]
[1674232344018,0.75275586,21250.0,21245.0,0.62018442]
[1674232344240,0.75275586,21250.0,21245.0,0.42586345]
[1674232344494,0.38346447,21247.0,21246.0,0.4671863]
[1674232344732,0.0085,21249.0,21245.0,0.07693737]
[1674232344961,0.41768558,21252.0,21251.0,0.20946536]
[1674232345194,0.31937751,21253.0,21251.0,0.73802433]
[1674232345590,0.31937751,21253.0,21252.0,0.313745]
[1674232345879,0.27547,21256.0,21251.0,0.20946536]
[1674232345880,0.39198886,21252.0,21251.0,0.20946536]
[1674232346409,0.0757,21253.0,21251.0,0.20946536]
[1674232346903,0.328944,21252.0,21251.0,0.20946536]
[1674232347160,0.67114935,21252.0,21251.0,0.20446536]
[1674232347419,0.35070535,21252.0,21251.0,0.20446536]
[1674232349008,0.600128,21252.0,21251.0,0.20446536]
[1674232349540,0.750128,21252.0,21251.0,0.20446536]
[1674232349821,0.9841108,21252.0,21251.0,0.20446536]
[1674232350072,1.4546538,21252.0,21251.0,0.20446536]
[1674232350327,1.372071,21252.0,21251.0,0.20446536]
[1674232350826,1.672071,21252.0,21251.0,0.20446536]
[1674232351358,1.372071,21252.0,21251.0,0.20446536]
[1674232351894,1.28507091,21252.0,21251.0,0.20446536]
[1674232352145,0.71321091,21252.0,21251.0,0.20446536]
[1674232352738,0.329668,21252.0,21251.0,0.20446536]
[1674232352991,0.74388157,21252.0,21251.0,0.20446536]
[1674232354253,0.39318047,21255.0,21251.0,0.84276024]
[1674232354550,0.42983502,21254.0,21252.0,0.19432097]
[1674232354780,0.44078027,21257.0,21253.0,0.19432097]
[1674232355040,0.44078027,21257.0,21254.0,0.19432097]
[1674232355300,0.17104592,21258.0,21254.0,0.64093034]
[1674232355576,0.02104592,21258.0,21255.0,0.19432097]
[1674232355941,0.02104592,21258.0,21256.0,0.19432097]
[1674232355942,0.42681276,21258.0,21256.0,0.19432097]
[1674232356203,0.02104592,21258.0,21256.0,0.19432097]
[1674232356466,0.02104592,21258.0,21254.0,0.38676293]
[1674232356467,0.40545085,21257.0,21254.0,0.38676293]
[1674232356739,0.317851,21256.0,21254.0,0.38676293]
[1674232357006,0.40545085,21257.0,21254.0,0.38676293]
[1674232357791,0.0085,21256.0,21254.0,0.38676293]
[1674232358317,0.0085,21256.0,21252.0,0.6627]
[1674232358318,0.05199968,21256.0,21252.0,0.6627]
[1674232358590,0.05199968,21256.0,21253.0,0.41489466]
[1674232358591,0.0085,21256.0,21253.0,0.41489466]
[1674232359123,0.02104592,21258.0,21254.0,0.3]
[1674232359378,0.0085,21257.0,21255.0,0.19432097]
[1674232359632,0.0085,21257.0,21254.0,0.56982097]
[1674232359940,0.0085,21257.0,21254.0,0.0755]
[1674232360231,0.02104592,21258.0,21254.0,0.49432097]
[1674232360493,0.5081,21264.0,21258.0,0.04209184]
[1674232360757,0.36216362,21260.0,21259.0,0.19432097]
[1674232361026,0.48223506,21264.0,21258.0,0.04209184]
[1674232361339,0.42858695,21261.0,21259.0,0.19432097]
[1674232361599,0.42858695,21261.0,21258.0,0.04209184]
[1674232361853,0.77952592,21265.0,21258.0,0.23641281]
[1674232361854,0.02104592,21265.0,21258.0,0.23641281]
[1674232362115,0.37444012,21264.0,21259.0,0.19432097]
[1674232362388,0.02104592,21265.0,21260.0,0.19432097]
[1674232362654,0.43588015,21265.0,21261.0,0.58417497]
[1674232362920,0.43588015,21265.0,21260.0,0.19432097]
[1674232362921,0.41065314,21263.0,21260.0,0.19432097]
[1674232363184,0.02104592,21265.0,21258.0,0.11769184]
[1674232363443,0.02104592,21265.0,21261.0,0.33376432]
[1674232363444,0.32675016,21264.0,21261.0,0.33376432]
[1674232364627,0.32505538,21263.0,21258.0,0.04209184]
[1674232364885,0.18975,21262.0,21258.0,0.04209184]
[1674232365159,0.322423,21261.0,21258.0,0.38747292]
[1674232365404,0.99883188,21262.0,21258.0,0.38747292]
[1674232365659,0.324025,21261.0,21258.0,0.04209184]
[1674232365907,0.18178,21260.0,21258.0,0.04209184]
[1674232366150,0.313478,21259.0,21258.0,0.04209184]
[1674232367178,0.471978,21259.0,21258.0,0.04209184]
[1674232367723,0.6565597,21259.0,21258.0,0.04209184]
[1674232367973,0.771978,21259.0,21258.0,0.04209184]
[1674232368259,1.200578,21259.0,21258.0,0.04209184]
[1674232368509,1.20107768,21259.0,21258.0,0.04209184]
[1674232369255,1.00107768,21259.0,21258.0,0.04209184]
[1674232369504,0.15,21258.0,21254.0,2.6808]
[1674232369749,0.2831,21255.0,21251.0,0.20446536]
[1674232369994,1.025589,21254.0,21251.0,0.20446536]
[1674232370238,0.342327,21253.0,21251.0,0.20446536]
[1674232370496,0.387438,21252.0,21251.0,0.20446536]
[1674232370741,0.116978,21252.0,21251.0,0.20446536]
[1674232371499,0.0085,21252.0,21251.0,0.20446536]
[1674232371991,0.15,21255.0,21251.0,0.74602208]
[1674232371992,0.31452524,21255.0,21251.0,0.74602208]
[1674232372494,0.00049621,21254.0,21251.0,0.39878633]
[1674232372744,0.00049621,21254.0,21252.0,0.616891]
[1674232373001,0.00049621,21254.0,21253.0,0.323892]
[1674232373240,0.00049621,21254.0,21253.0,0.473892]
[1674232373738,0.00049621,21254.0,21253.0,0.773892]
[1674232374221,0.00049621,21254.0,21253.0,0.763892]
[1674232374706,0.00049621,21254.0,21253.0,0.463892]
[1674232374957,1e-08,21254.0,21253.0,0.463892]
[1674232375206,1e-08,21254.0,21253.0,0.763892]
[1674232375455,0.06469386,21259.0,21253.0,0.763892]
[1674232375706,0.0085,21258.0,21254.0,0.96369697]
[1674232375960,0.0085,21258.0,21255.0,0.322791]
[1674232376209,0.44392219,21257.0,21255.0,0.34710468]
[1674232376511,0.44431743,21257.0,21253.0,0.39161263]
[1674232376750,0.0085,21256.0,21253.0,0.39161263]
[1674232377011,0.034097,21256.0,21253.0,0.39161263]
[1674232377258,0.034097,21256.0,21252.0,0.15]
[1674232377554,0.034097,21256.0,21251.0,0.79625789]
[1674232377776,0.034097,21256.0,21252.0,0.41885961]
[1674232378758,0.34575062,21255.0,21251.0,0.20446536]
[1674232379016,0.0085,21254.0,21251.0,0.55059041]
[1674232379527,0.10597096,21254.0,21251.0,0.55059041]
[1674232379778,0.0085,21254.0,21251.0,0.20446536]
[1674232380020,0.0085,21254.0,21251.0,0.54101075]
[1674232380496,0.0003599,21253.0,21251.0,0.54071175]
[1674232381258,0.0003599,21253.0,21252.0,0.45754436]
[1674232381515,0.0003599,21253.0,21252.0,0.53603617]
[1674232381787,0.0003599,21253.0,21252.0,0.74511949]
[1674232382030,0.0003599,21253.0,21252.0,1.19511949]
[1674232382532,0.42906933,21256.0,21252.0,1.19511949]
[1674232382799,0.3799676,21259.0,21253.0,1.28788197]
[1674232383059,0.32656979,21258.0,21255.0,0.15]
[1674232383311,0.32656979,21258.0,21256.0,0.326198]
[1674232383575,0.32656979,21258.0,21257.0,0.333439]
[1674232383815,0.41500343,21258.0,21255.0,0.43914649]
[1674232384077,0.41500343,21258.0,21256.0,0.42198826]
[1674232384327,0.06430001,21259.0,21257.0,0.67152266]
[1674232384570,0.06430001,21259.0,21258.0,2.19893669]
[1674232384819,0.06430001,21259.0,21258.0,2.02852569]
[1674232385358,0.06430001,21259.0,21258.0,0.310502]
[1674232385860,0.37026995,21258.0,21256.0,0.58400793]
[1674232386118,0.025597,21257.0,21253.0,0.949614]
[1674232386419,0.06430001,21259.0,21252.0,1.50754365]
[1674232386420,0.39957574,21256.0,21252.0,1.50754365]
[1674232386619,0.025597,21255.0,21252.0,0.44414365]
[1674232387145,0.034097,21254.0,21251.0,0.58074119]
[1674232387388,0.034097,21254.0,21252.0,0.36916036]
[1674232387656,0.0085,21254.0,21252.0,0.36916036]
[1674232387889,0.310811,21253.0,21251.0,0.20416636]
[1674232388161,0.14379,21252.0,21251.0,0.5904959]
[1674232388657,0.14379,21252.0,21251.0,0.20416636]
[1674232388916,0.61904942,21252.0,21251.0,0.20416636]
[1674232389329,0.85343122,21252.0,21251.0,0.20416636]
[1674232389584,0.54262022,21252.0,21251.0,0.44416636]
[1674232390118,0.15,21257.0,21251.0,0.63848733]
[1674232390380,0.36185161,21256.0,21252.0,0.51038697]
[1674232390637,0.36185161,21256.0,21252.0,0.19432097]
[1674232391163,0.37295319,21255.0,21252.0,0.19432097]
[1674232391539,0.310811,21254.0,21251.0,0.88282473]
[1674232391691,0.48218608,21255.0,21251.0,0.88282473]
[1674232391946,0.775221,21258.0,21252.0,0.19432097]
[1674232391947,0.470421,21258.0,21252.0,0.19432097]
[1674232392212,0.87180941,21259.0,21253.0,0.19432097]
[1674232392471,0.87180941,21259.0,21254.0,0.19432097]
[1674232392764,0.06430001,21259.0,21255.0,0.51171897]
[1674232393050,0.06430001,21259.0,21256.0,1.695012]
[1674232393324,0.32607968,21261.0,21257.0,0.324968]
[1674232393586,0.32607968,21261.0,21258.0,0.32042]
[1674232393848,0.43854079,21258.0,21256.0,0.8994]
[1674232394127,0.46413779,21258.0,21254.0,0.470477]
[1674232394380,0.025597,21258.0,21254.0,0.470477]
[1674232394636,0.15421,21261.0,21255.0,0.621438]
[1674232394637,0.3781516,21261.0,21255.0,0.621438]
[1674232394901,0.44452532,21264.0,21256.0,0.783511]
[1674232395162,0.44452532,21264.0,21257.0,0.921024]
[1674232395452,0.02104592,21265.0,21259.0,1.086872]
[1674232395714,0.02104592,21265.0,21260.0,0.319466]
[1674232395984,0.02104592,21265.0,21261.0,0.51149097]
[1674232395985,0.41289295,21265.0,21261.0,0.51149097]
[1674232396241,0.41289295,21265.0,21262.0,0.331049]
[1674232396503,0.3798739,21264.0,21260.0,0.15]
[1674232396977,0.02104592,21265.0,21260.0,0.64432097]
[1674232396978,0.04664292,21265.0,21260.0,0.64432097]
[1674232396984,0.4764392,21265.0,21261.0,0.47034]
[1674232397235,0.02104592,21265.0,21262.0,0.31729]
[1674232397515,0.02104592,21265.0,21261.0,0.19432097]
[1674232398073,0.04664292,21265.0,21261.0,0.33246119]
[1674232399579,0.04664292,21265.0,21262.0,0.46235969]
[1674232399580,0.02104592,21265.0,21262.0,0.46235969]
[1674232399842,0.37576804,21265.0,21262.0,0.46235969]
[1674232400386,0.32443726,21264.0,21258.0,1.797308]
[1674232400683,0.025597,21263.0,21260.0,0.34298981]
[1674232400957,0.034097,21263.0,21260.0,0.34298981]
[1674232401225,0.034097,21263.0,21255.0,4.4296]
[1674232401491,0.025597,21262.0,21260.0,0.45225537]
[1674232401763,0.0085,21263.0,21262.0,0.38807317]
[1674232402307,0.02104592,21265.0,21262.0,0.58239414]
[1674232402570,0.02104592,21265.0,21262.0,0.38807317]
[1674232402571,0.32839522,21264.0,21262.0,0.38807317]
[1674232402841,0.0085,21263.0,21262.0,0.38807317]
[1674232403400,0.32839522,21264.0,21262.0,0.38807317]
[1674232403663,0.02104592,21265.0,21263.0,0.41128219]
[1674232403929,0.02104592,21265.0,21263.0,0.60560316]
[1674232404183,0.02104592,21265.0,21263.0,0.41128219]
[1674232404735,0.34311639,21265.0,21263.0,0.41117142]
[1674232405775,0.31261386,21264.0,21261.0,0.38375009]
[1674232406080,0.336408,21263.0,21261.0,0.38375009]
[1674232406340,0.32111386,21264.0,21261.0,0.38375009]
[1674232406858,0.36664884,21264.0,21257.0,0.470426]
[1674232407117,0.025597,21263.0,21255.0,4.03916]
[1674232407622,0.033917,21262.0,21258.0,0.38361368]
[1674232407625,0.033917,21262.0,21259.0,0.38028088]
[1674232407888,0.0085,21262.0,21255.0,2.6808]
[1674232408144,0.0085,21262.0,21257.0,0.40437169]
[1674232408145,0.64604682,21261.0,21257.0,0.40437169]
[1674232408413,0.319311,21260.0,21257.0,0.40437169]
[1674232408701,0.0085,21260.0,21257.0,0.40437169]
[1674232408948,0.1585,21260.0,21257.0,0.40437169]
[1674232410017,0.336228,21259.0,21256.0,0.39136582]
[1674232410278,0.0085,21258.0,21251.0,3.6342]
[1674232410545,0.025417,21257.0,21253.0,0.35669902]
[1674232410811,0.0085,21256.0,21253.0,0.35669902]
[1674232411069,0.033917,21256.0,21253.0,0.35669902]
[1674232411554,0.0085,21256.0,21253.0,0.35669902]
[1674232411835,0.0085,21257.0,21253.0,0.35669902]
[1674232412098,0.1435,21257.0,21255.0,0.42192508]
[1674232412359,0.44559998,21257.0,21253.0,0.38831091]
[1674232412665,0.310811,21256.0,21254.0,0.34036819]
[1674232412896,1.928109,21259.0,21254.0,0.19432097]
[1674232413148,0.3618918,21257.0,21255.0,0.6578771]
[1674232413413,0.3618918,21257.0,21255.0,0.46355613]
[1674232413975,0.3618918,21257.0,21252.0,0.51119097]
[1674232414244,0.4002562,21256.0,21253.0,0.38531058]
[1674232414761,0.37386554,21255.0,21253.0,0.38531058]
[1674232415038,0.025417,21254.0,21250.0,2.83307392]
[1674232415481,0.025417,21253.0,21250.0,0.48929202]
[1674232415705,0.025417,21253.0,21250.0,0.15227392]
[1674232415985,0.32210376,21253.0,21250.0,0.15227392]
[1674232416251,1.44297412,21257.0,21251.0,0.4440819]
[1674232416516,0.43844356,21256.0,21252.0,0.50988597]
[1674232416776,0.41443561,21255.0,21252.0,0.19432097]
[1674232417042,0.0085,21256.0,21252.0,0.19432097]
[1674232417043,0.0085,21254.0,21252.0,0.19432097]
[1674232417306,0.0085,21256.0,21250.0,0.15227392]
[1674232417564,0.033917,21256.0,21251.0,0.19432097]
[1674232417843,0.0085,21256.0,21251.0,0.19432097]
[1674232418102,0.033917,21256.0,21251.0,0.49432097]
[1674232418391,0.0085,21256.0,21252.0,0.80544947]
[1674232418661,1.55571943,21259.0,21253.0,0.311897]
[1674232418921,0.34577437,21258.0,21254.0,0.65788497]
[1674232419364,0.38964808,21256.0,21255.0,0.319117]
[1674232419365,0.38964808,21256.0,21252.0,0.60420425]
[1674232419595,0.37336917,21255.0,21252.0,0.45420425]
[1674232420039,0.37336917,21255.0,21250.0,0.15227392]
[1674232420268,0.02555,21254.0,21250.0,0.527316]
[1674232420716,0.0085,21253.0,21250.0,0.15227392]
[1674232420941,0.35419301,21253.0,21250.0,0.15227392]
[1674232421171,0.32864301,21253.0,21251.0,0.45544485]
[1674232421949,0.32864301,21253.0,21250.0,0.15227392]
[1674232422211,0.310811,21252.0,21250.0,0.15227392]
[1674232422500,0.27896,21251.0,21250.0,0.15227392]
[1674232423094,0.576871,21251.0,21250.0,0.15227392]
[1674232423781,1.11305787,21251.0,21250.0,0.15227392]
[1674232425847,0.726871,21251.0,21250.0,0.15227392]
[1674232426093,2.0205932,21251.0,21250.0,0.15227392]
[1674232426345,1.6037636,21251.0,21250.0,0.15227392]
[1674232426592,1.29159342,21251.0,21250.0,0.15227392]
[1674232426865,1.309971,21251.0,21250.0,0.15227392]
[1674232427091,1.63635327,21251.0,21250.0,0.15227392]
[1674232427347,1.309971,21251.0,21250.0,0.15227392]
[1674232427876,1.780537,21251.0,21250.0,0.15227392]
[1674232428651,2.13014855,21251.0,21250.0,0.15227392]
[1674232429464,1.83014855,21251.0,21250.0,0.15227392]
[1674232429923,2.13014855,21251.0,21250.0,0.15227392]
[1674232430182,1.83014855,21251.0,21250.0,0.15227392]
[1674232430438,2.13014855,21251.0,21250.0,0.15227392]
[1674232433313,2.19052978,21251.0,21250.0,0.15227392]
[1674232433504,2.54830436,21251.0,21250.0,0.15227392]
[1674232433757,2.13696729,21251.0,21250.0,0.15227392]
[1674232434275,2.46563226,21251.0,21250.0,0.15227392]
[1674232434781,2.30162729,21251.0,21250.0,0.15227392]
[1674232435037,2.96917041,21251.0,21250.0,0.15227392]
[1674232435295,3.58423187,21251.0,21250.0,0.15227392]
[1674232435558,2.66873061,21251.0,21250.0,0.15227392]
[1674232435822,2.31095603,21251.0,21250.0,0.15227392]
[1674232436077,0.15,21250.0,21249.0,0.00304665]
[1674232436328,1.72490028,21250.0,21249.0,0.00304665]
[1674232436580,1.82615206,21250.0,21249.0,0.00304665]
[1674232436850,1.77247964,21250.0,21249.0,0.00304665]
[1674232437189,1.73587352,21250.0,21249.0,0.00304665]
[1674232438152,0.962576,21250.0,21249.0,0.19736762]
[1674232438636,0.962576,21250.0,21249.0,0.00304665]
[1674232438637,1.112576,21250.0,21249.0,0.00304665]
[1674232438641,1.5410074,21250.0,21249.0,0.00304665]
[1674232439669,1.81922024,21250.0,21249.0,0.00304665]
[1674232440181,1.3910074,21250.0,21249.0,0.00304665]
[1674232440687,0.962576,21250.0,21249.0,0.00304665]
[1674232440976,0.962576,21250.0,21249.0,0.40870973]
[1674232441204,0.479088,21250.0,21249.0,0.40870973]
[1674232441456,0.0085,21250.0,21249.0,0.40870973]
[1674232442522,0.0085,21250.0,21249.0,0.00304665]
[1674232442523,0.87884719,21250.0,21249.0,0.00304665]
[1674232442773,1.54962965,21250.0,21249.0,0.00304665]
[1674232443030,1.53881865,21250.0,21249.0,0.00304665]
[1674232443292,1.54962965,21250.0,21249.0,0.00304665]
[1674232443758,2.32485587,21250.0,21249.0,0.00304665]
[1674232443763,1.80431819,21250.0,21249.0,0.00304665]
[1674232444023,2.32485587,21250.0,21249.0,0.00304665]
[1674232444538,3.4267113,21250.0,21249.0,0.00304665]
[1674232444848,3.89787435,21250.0,21249.0,0.00304665]
[1674232445053,3.47860619,21250.0,21249.0,0.00304665]
[1674232445590,3.79082148,21250.0,21249.0,0.00304665]